Workbook

Sheet ZPORR
L1: Załącznik Nr 4 do uchwały nr XXXIII/238/2013 z dnia 26.03.2013r.
A3: Wydatki na programy finansowane z udziałem środków, o których mowa w art. 5 ust 1 pkt 2 i 3, zał. Nr 6 do uchwały budżetowej - plan na 2013 rok
A5: Lp | B5: Projekt | C5: Kate- goria intr- wen- cji fundu-szy struktural- nych | D5: Klasyfi- kacja (dział, rozdział) | E5: Wydatki w okresie realizacji projektu (całkowita wartość Projektu) | F5: w tym: | H5: Planowane wydatki
F6: środki z budżetu krajowego | G6: środki z budżetu UE | H6: 2013 r.
H7: Wydatki razem | I7: z tego:
I8: Środki z budżetu krajowego ** | M8: Środki z budżetu UE
I9: Wydatki razem | J9: z tego źródła finansowania: | M9: Wydatki razem | N9: z tego żródła finansowania:
J10: pożyczki i kredyty | K10: obligacje | L10: pozostałe ** | N10: pożyczki na prefin. z budżetu państwa | O10: pożyczki i kredyty | P10: obligacje | Q10: pozostałe
B13: Wydatki majątkowe razem | C13: x | E13: =SUM(F13:G13) -> 1272992.42 | F13: 755516.42 | G13: 517476 | H13: =SUM(M13,I13) -> 537027.43 | I13: =SUM(J13:L13) -> 318724.43 | J13: 0 | K13: 0 | L13: =SUM(L16) -> 318724.43 | M13: =SUM(N13:Q13) -> 218303 | N13: =SUM(N16) -> 218303 | O13: 0 | P13: 0 | Q13: 0
A14: 1.1 | B14: Program: PROW 2007-2013 | C14: Działanie: 321 "Podstawowe usługi dla gospodarki i ludności wiejskiej" Umowa o przyznanie pomocy nr 00057-6921-UM1500096/10 z dnia 24.02.2011 r.
B15: Oś 3: "Jakość życia na obszarach wiejskich i różnicowanie gospodarki wiejskiej"
B16: Nazwa projektu: "Budowa kanalizacji deszczowej na osiedlu w Lipnie etap II" | D16: 01010 | E16: =SUM(F16:G16) -> 1272992.42 | F16: 755516.42 | G16: 517476 | H16: =SUM(M16,I16) -> 537027.43 | I16: =SUM(J16:L16) -> 318724.43 | J16: 0 | K16: 0 | L16: 318724.43 | M16: =SUM(N16:Q16) -> 218303 | N16: 218303 | O16: 0 | P16: 0 | Q16: 0
B17: z tego: 2012 r. | E17: =SUM(F17:G17) -> 634530.24 | F17: 376591.24 | G17: 257939 | H17: =SUM(M17,I17) -> 0 | I17: =SUM(J17:L17) -> 0 | J17: 0 | K17: 0 | L17: 0 | M17: =SUM(N17:Q17) -> 0 | N17: 0 | O17: 0 | P17: 0 | Q17: 0
B18: 2013 r. | E18: =SUM(F18:G18) -> 638462.18 | F18: 378925.18 | G18: 259537 | H18: =SUM(M18,I18) -> 0 | I18: =SUM(J18:L18) -> 0 | J18: 0 | K18: 0 | L18: 0 | M18: =SUM(N18:Q18) -> 0 | N18: 0 | O18: 0 | P18: 0 | Q18: 0
B19: Ogółem I | C19: x | E19: =SUM(E17:E18) -> 1272992.42 | F19: =SUM(F17:F18) -> 755516.42 | G19: 517476 | H19: 0 | I19: 0 | J19: 0 | K19: 0 | L19: 0 | M19: 0 | N19: 0 | O19: 0 | P19: 0 | Q19: 0
A20: 1 | B20: 2 | C20: 3 | D20: 4 | E20: 5 | F20: 6 | G20: 7 | H20: 8 | I20: 9 | J20: 10 | K20: 11 | L20: 12 | M20: 13 | N20: 14 | O20: 15 | P20: 16 | Q20: 17
B21: Wydatki majątkowe razem | C21: x | E21: =SUM(F21:G21) -> 0 | F21: 0 | G21: 0 | H21: =SUM(M21,I21) -> 0 | I21: =SUM(J21:L21) -> 0 | J21: 0 | K21: 0 | L21: 0 | M21: =SUM(N21:Q21) -> 0 | N21: 0 | O21: 0 | P21: 0 | Q21: 0
A22: 1.2 | B22: Program: PROW 2007-2013 | C22: Działanie: 313, 322, 323 "Odnowa i rozwój wsi" Umowa o przyznanie pomocy nr 00315-6922-UM1500246/10 z dnia 24.02.2011 r.
B23: Oś 3: "Jakość życia na obszarach wiejskich i różnicowanie gospodarki wiejskiej"
B24: Nazwa projektu: "Budowa ścieżki rowerowej przy ul. Lipowej w Wilkowicach" | D24: 60016 | E24: =SUM(E25:E25) -> 0 | F24: 0 | G24: =SUM(G25:G25) -> 0 | H24: =SUM(M24,I24) -> 0 | I24: =SUM(I25) -> 0 | J24: 0 | K24: 0 | L24: 0 | M24: =SUM(N24:Q24) -> 0 | N24: 0 | O24: 0 | P24: 0 | Q24: 0
B25: z tego: 2012 r. | E25: =SUM(F25:G25) -> 0 | F25: 0 | G25: 0 | H25: =SUM(M25,I25) -> 0 | I25: =SUM(J25:L25) -> 0 | J25: 0 | K25: 0 | L25: 0 | M25: =SUM(N25:Q25) -> 0 | N25: 0 | O25: 0 | P25: 0 | Q25: 0
B26: Ogółem | C26: x | E26: =SUM(E25:E25) -> 0 | F26: 0 | G26: =SUM(G25:G25) -> 0 | H26: 0 | I26: 0 | J26: =SUM(J25:J25) -> 0 | K26: 0 | L26: =SUM(L25:L25) -> 0 | M26: 0 | N26: 0 | O26: 0 | P26: 0 | Q26: 0
B29: Wydatki majątkowe razem | C29: x | E29: 406269.63 | F29: 243635.63 | G29: 162634 | H29: =SUM(M29,I29) -> 241099.4 | I29: =SUM(J29:L29) -> 122166.48 | J29: =SUM(J32) -> 122166.48 | K29: 0 | L29: 0 | M29: =SUM(N29:Q29) -> 118932.92 | N29: =SUM(N32) -> 118932.92 | O29: 0 | P29: 0 | Q29: 0 | S29: Razem
A30: 1.2 | B30: Program: PROW 2007-2013 | C30: Działanie: 413 "Wdrażanie lokalnych strategii rozwoju" w zakresie operacji odpowiadających warunkom przyznania pomocy w ramach działania "Odnowa i rozwój wsi" Umowa o przyznanie pomocy nr 00279-6930-UM1530056/11 z dnia 02.11.2011 r. | S30: =SUM(E13,E21,E29,E38,E45) -> 1679262.05
B31: Oś 4: "Leader"
B32: Nazwa projektu: "Remont świetlicy wiejskiej w Żakowie wraz z utwardzeniem terenu przed świetlicą" | D32: 92109 | E32: =SUM(F32:G32) -> 406269.63 | F32: =SUM(F33:F35) -> 243635.63 | G32: =SUM(G33:G35) -> 162634 | H32: =SUM(I32+M32) -> 241099.4 | I32: =SUM(J32:L32) -> 122166.48 | J32: 122166.48 | K32: 0 | L32: 0 | M32: =SUM(N32:Q32) -> 118932.92 | N32: 118932.92 | O32: 0 | P32: 0 | Q32: 0 | S32: 2013
B33: z tego: w 2011 r. poniesiono | E33: =SUM(F33:G33) -> 5473.5 | F33: 3101.65 | G33: 2371.85 | S33: =SUM(E18+E35) -> 879561.58
B34: 2012 r. | E34: =SUM(F34:G34) -> 159696.73 | F34: 75964.73 | G34: 83732 | H34: =SUM(I34+M34) -> 0 | I34: =SUM(J34:L34) -> 0 | J34: 0 | K34: 0 | L34: 0 | M34: =SUM(N34:Q34) -> 0 | N34: 0 | O34: 0 | P34: 0 | Q34: 0
B35: 2013 r. | E35: =SUM(F35:G35) -> 241099.4 | F35: 164569.25 | G35: 76530.15 | I35: =SUM(J35:L35) -> 162197.4 | J35: 162197.4 | M35: 78902 | N35: 78902
B36: Ogółem I | C36: x | E36: =SUM(E33:E35) -> 406269.63 | F36: =SUM(F33:F35) -> 243635.63 | G36: 162634 | H36: =SUM(H34:H35) -> 0 | I36: =SUM(I34) -> 0 | J36: 0 | K36: 0 | L36: 0 | M36: 0 | N36: =SUM(N34) -> 0 | O36: 0 | P36: 0 | Q36: 0
A37: 1 | B37: 2 | C37: 3 | D37: 4 | E37: 5 | F37: 6 | G37: 7 | H37: 8 | I37: 9 | J37: 10 | K37: 11 | L37: 12 | M37: 13 | N37: 14 | O37: 15 | P37: 16 | Q37: 17
B38: Wydatki majątkowe razem | C38: x | E38: 0 | F38: 0 | G38: 0 | H38: =SUM(M38,I38) -> 0 | I38: =SUM(J38:L38) -> 0 | J38: 0 | K38: 0 | L38: 0 | M38: =SUM(N38:Q38) -> 0 | N38: 0 | O38: 0 | P38: 0 | Q38: 0
A39: 1.4 | B39: Program: PROW 2007-2013 | C39: Działanie: 413 "Wdrażanie lokalnych strategii rozwoju" w zakresie małych projektów
B40: Oś 4: "Leader"
B41: Nazwa projektu: "Remont pokrycia wraz z dociepleniem dachu świetlicy wiejskiej w Targowisku" | D41: 92109 | E41: =SUM(F41:G41) -> 0 | F41: 0 | G41: 0 | H41: =SUM(M41,I41) -> 0 | I41: =SUM(J41:L41) -> 0 | J41: =SUM(J43) -> 0 | K41: 0 | L41: =SUM(L43) -> 0 | M41: =SUM(N41:Q41) -> 0 | N41: 0 | O41: 0 | P41: 0 | Q41: 0
B42: z tego: 2013 r. | E42: =SUM(F42:G42) -> 0 | F42: 0 | G42: 0 | H42: =SUM(M42,I42) -> 0 | I42: =SUM(J42:L42) -> 0 | J42: 0 | K42: 0 | L42: 0 | M42: =SUM(N42:Q42) -> 0 | N42: 0 | O42: 0 | P42: 0 | Q42: 0
B43: Ogółem I | C43: x | E43: =SUM(E42) -> 0 | F43: 0 | G43: 0 | H43: 0 | I43: 0 | J43: =SUM(J42) -> 0 | K43: 0 | L43: =SUM(L42) -> 0 | M43: 0 | N43: 0 | O43: 0 | P43: 0 | Q43: =SUM(Q42) -> 0
A44: 1 | B44: 2 | C44: 3 | D44: 4 | E44: 5 | F44: 6 | G44: 7 | H44: 8 | I44: 9 | J44: 10 | K44: 11 | L44: 12 | M44: 13 | N44: 14 | O44: 15 | P44: 16 | Q44: 17
B45: Wydatki bieżące razem | C45: x | E45: =SUM(F45:G45) -> 0 | F45: 0 | G45: 0 | H45: =SUM(M45,I45) -> 0 | I45: =SUM(J45:L45) -> 0 | J45: 0 | K45: 0 | L45: 0 | M45: =SUM(N45:Q45) -> 0 | N45: 0 | O45: 0 | P45: 0 | Q45: 0
A46: 1.5 | B46: Program: Program Operacyjny Kapitał Ludzki | C46: Realizacja projektu Nr POKL.07.01.01-30-107/12
B47: Działanie: Rozwój i upowszechnianie aktywnej integracji przez osrodki pomocy społecznej
B48: Nazwa projektu: Partner- system wsparcia osób zagrożonych wykluczeniem społecznym | D48: 85395 | E48: =SUM(F48:G48) -> 0 | F48: 0 | G48: 0 | H48: =SUM(M48,I48) -> 0 | I48: =SUM(J48:L48) -> 0 | J48: =SUM(J50) -> 0 | K48: 0 | L48: =SUM(L50) -> 0 | M48: =SUM(N48:Q48) -> 0 | N48: 0 | O48: 0 | P48: 0 | Q48: 0
B49: 2012 r. | E49: =SUM(F49:G49) -> 0 | F49: 0 | G49: 0 | H49: =SUM(M49,I49) -> 0 | I49: =SUM(J49:L49) -> 0 | J49: 0 | K49: 0 | L49: 0 | M49: =SUM(N49:Q49) -> 0 | N49: 0 | O49: 0 | P49: 0 | Q49: 0
B50: Ogółem | C50: x | E50: =SUM(E49) -> 0 | F50: 0 | G50: 0 | H50: 0 | I50: 0 | J50: =SUM(J49) -> 0 | K50: 0 | L50: =SUM(L49) -> 0 | M50: 0 | N50: 0 | O50: 0 | P50: 0 | Q50: =SUM(Q49) -> 0
B52: Wydatki majątkowe razem | C52: x | E52: 406269.63 | F52: 243635.63 | G52: 162634 | H52: =SUM(M52,I52) -> 49526.85 | I52: =SUM(J52:L52) -> 24526.85 | J52: =SUM(J55) -> 0 | K52: 0 | L52: =SUM(L55) -> 24526.85 | M52: =SUM(N52:Q52) -> 25000 | N52: =SUM(N55) -> 0 | O52: 0 | P52: 0 | Q52: =SUM(Q55) -> 25000
A53: 1.3 | B53: Program: PROW 2007-2013 | C53: Działanie: 413 "Wdrażanie lokalnych strategii rozwoju" w zakresie operacji odpowiadających warunkom przyznania pomocy w ramach działania "Odnowa i rozwój wsi" Umowa o przyznanie pomocy nr 01243-6930-UM1540581/12 z dnia 11.01.2013r.
B54: Oś 4: "Leader"
B55: Nazwa projektu: "Remont wraz z modernizacją Domu Strażaka w Wilkowicach"" | D55: 92109 | E55: =SUM(F55:G55) -> 4260304.42 | F55: =SUM(F56:F66) -> 2479138.87 | G55: =SUM(G56:G66) -> 1781165.55 | H55: =SUM(I55+M55) -> 49526.85 | I55: =SUM(J55:L55) -> 24526.85 | J55: 0 | K55: 0 | L55: 24526.85 | M55: =SUM(N55:Q55) -> 25000 | N55: 0 | O55: 0 | P55: 0 | Q55: 25000
B56: z tego: w 2011 r. poniesiono | E56: =SUM(F56:G56) -> 5473.5 | F56: 3101.65 | G56: 2371.85
B57: 2012 r. | E57: =SUM(F57:G57) -> 159696.73 | F57: 75964.73 | G57: 83732 | H57: =SUM(I57+M57) -> 0 | I57: =SUM(J57:L57) -> 0 | J57: 0 | K57: 0 | L57: 0 | M57: =SUM(N57:Q57) -> 0 | N57: 0 | O57: 0 | P57: 0 | Q57: 0
B59: Wydatki majątkowe razem | C59: x | E59: 406269.63 | F59: 243635.63 | G59: 162634 | H59: =SUM(M59,I59) -> 41690.4 | I59: =SUM(J59:L59) -> 16690.4 | J59: =SUM(J62) -> 0 | K59: 0 | L59: =SUM(L62) -> 16690.4 | M59: =SUM(N59:Q59) -> 25000 | N59: =SUM(N62) -> 0 | O59: 0 | P59: 0 | Q59: =SUM(Q62) -> 25000
A60: 1.3 | B60: Program: PROW 2007-2013 | C60: Działanie: 413 "Wdrażanie lokalnych strategii rozwoju" w zakresie operacji odpowiadających warunkom przyznania pomocy w ramach działania "Odnowa i rozwój wsi" Umowa o przyznanie pomocy nr 01243-6930-UM1540581/12 z dnia 11.01.2013r.
B61: Oś 4: "Leader"
B62: Nazwa projektu: "Budowa placu zabaw dla dzieci w Lipnie" | D62: 92601 | E62: =SUM(F62:G62) -> 1844432.28 | F62: =SUM(F63:F73) -> 1078218.43 | G62: =SUM(G63:G73) -> 766213.85 | H62: =SUM(I62+M62) -> 41690.4 | I62: =SUM(J62:L62) -> 16690.4 | J62: 0 | K62: 0 | L62: 16690.4 | M62: =SUM(N62:Q62) -> 25000 | N62: 0 | O62: 0 | P62: 0 | Q62: 25000
B63: z tego: w 2011 r. poniesiono | E63: =SUM(F63:G63) -> 5473.5 | F63: 3101.65 | G63: 2371.85
E64: =SUM(F64:G64) -> 159696.73 | F64: 75964.73 | G64: 83732 | H64: =SUM(I64+M64) -> 0 | I64: =SUM(J64:L64) -> 0 | J64: 0 | K64: 0 | L64: 0 | M64: =SUM(N64:Q64) -> 0 | N64: 0 | O64: 0 | P64: 0 | Q64: 0
B66: RAZEM | E66: =SUM(F66:G66) -> 1679262.05 | F66: =SUM(F13+F29) -> 999152.05 | G66: =SUM(G13+G29) -> 680110 | H66: =SUM(H13+H29+H52+H59) -> 869344.08 | I66: =SUM(I13+I29+I52+I59) -> 482108.16 | J66: 122166.48 | K66: 0 | L66: 359941.68 | M66: 387235.92 | N66: 337235.92 | O66: 0 | P66: 0 | Q66: 50000
